[Event "UZB-ch Women 2021"]
[Site "Tashkent"]
[Date "2021.04.25"]
[Round "9.2"]
[White "Orazmukhammedova, Makhim"]
[Black "Malikova, Marjona"]
[Result "0-1"]
[ECO "E93"]
[WhiteElo "1898"]
[BlackElo "1651"]
[Annotator "NA"]
[PlyCount "72"]
[EventDate "2021.04.17"]
[EventType "tourn"]
[EventCountry "UZB"]
[SourceTitle "playchess.com"]
[Source "ChessBase"]
[SourceQuality "1"]
[TimeControl "5400+30"]

1. d4 {[%emt 0:00:00]} Nf6 {[%emt 0:00:00]} 2. c4 {[%emt 0:00:00]} g6 {[%emt 0:00:00]} 3. Nc3 {[%emt 0:00:00]} Bg7 {[%emt 0:00:00]} 4. e4 {[%emt 0:00:00]} d6 {[%emt 0:00:00]} 5. Be2 {[%emt 0:00:18]} O-O {[%emt 0:00:16]} 6. Bg5 {[%emt 0:00:07]} h6 {[%emt 0:01:11]} 7. Bh4 {[%emt 0:00:19]} Nbd7 {[%emt 0:01:21]} 8. Nf3 {[%emt 0:00:07]} e5 {[%emt 0:03:30]} 9. d5 {[%emt 0:00:24]} g5 {[%emt 0:02:27]} 10. Bg3 {[%emt 0:00:01]} Nc5 {[%emt 0:01:18]} 11. Nd2 {[%emt 0:00:25]} a5 {[%emt 0:01:01]} 12. O-O {[%emt 0:00:45]} Nh7 {[%emt 0:03:16]} 13. Bg4 {[%emt 0:09:51]} f5 {[%emt 0:04:51]} 14. exf5 {[%emt 0:00:07]} Bxf5 {[%emt 0:00:06]} 15. Bxf5 {[%emt 0:00:04]} Rxf5 {[%emt 0:00:07]} 16. Nde4 {[%emt 0:00:44]} (16. f3 $16) 16... Nxe4 {[%emt 0:00:33]} 17. Nxe4 {[%emt 0:00:02]} Nf6 {[%emt 0:03:03]} 18. Qc2 {[%emt 0:13:41]} Nxe4 {[%emt 0:00:48]} 19. Qxe4 {[%emt 0:00:02]} Qf6 {[%emt 0:00:26]} 20. f3 {[%emt 0:01:08]} h5 {[%emt 0:02:08]} 21. h3 {[%emt 0:10:22]} Rf8 $11 {[%emt 0:01:56]} 22. Rae1 {[%emt 0:23:21]} Bh6 {[%emt 0:11:34]} 23. b3 {[%emt 0:08:14]} Rf7 {[%emt 0:02:00]} 24. a3 {[%emt 0:03:02]} g4 {[%emt 0:02:51]} 25. hxg4 {[%emt 0:05:31]} hxg4 {[%emt 0:00:11]} 26. Qxg4+ {[%emt 0:02:38]} Rg7 {[%emt 0:00:35]} 27. Bh4 {[%emt 0:01:10]} Qf7 {[%emt 0:08:37]} 28. Qh3 {[%emt 0:00:01]} Bf4 {[%emt 0:02:16]} 29. Kf2 {[%emt 0:02:13]} Rh5 {[%emt 0:00:57]} 30. Qc8+ {[%emt 0:06:06]} Kh7 {[%emt 0:00:33]} 31. g3 {[%emt 0:00:22]} Qg6 {[%emt 0:03:38]} 32. Rg1 {[%emt 0:07:50]} Qc2+ {[%emt 0:15:02]} 33. Re2 {[%emt 0:00:49]} Qd3 {[%emt 0:00:06]} 34. Qh3 {[%emt 0:04:10]} Qd4+ {[%emt 0:02:53]} 35. Kf1 {[%emt 0:00:21]} Be3 {[%emt 0:01:32]} 36. Rgg2 {[%emt 0:01:09]} Qd1+ {[%emt 0:26:57]} 0-1

[Event "UZB-ch Women 2021"]
[Site "Tashkent"]
[Date "2021.04.25"]
[Round "9.3"]
[White "Salimova, Asal"]
[Black "Yakubbaeva, Nilufar"]
[Result "0-1"]
[ECO "B20"]
[WhiteElo "1815"]
[BlackElo "2275"]
[Annotator "ChessBase"]
[PlyCount "98"]
[EventDate "2021.04.17"]
[EventType "tourn"]
[EventCountry "UZB"]
[SourceTitle "playchess.com"]
[Source "ChessBase"]
[SourceQuality "1"]
[TimeControl "5400+30"]

1. e4 {[%emt 0:00:25]} c5 {[%emt 0:01:48]} 2. Nf3 {[%emt 0:00:34]} Nc6 {[%emt 0:01:03]} 3. g3 {[%emt 0:02:54]} d5 {[%emt 0:04:25]} 4. exd5 {[%emt 0:00:22]} Qxd5 {[%emt 0:00:15]} 5. Nc3 {[%emt 0:02:37]} Qe6+ {[%emt 0:00:09]} 6. Qe2 {[%emt 0:04:26]} Qxe2+ {[%emt 0:00:32]} 7. Bxe2 {[%emt 0:00:35]} e5 {[%emt 0:00:41]} 8. Nd5 {[%emt 0:07:44]} Bd6 {[%emt 0:01:29]} 9. b3 {[%emt 0:04:32]} Nge7 {[%emt 0:04:14]} 10. Nxe7 {[%emt 0:00:53]} Kxe7 {[%emt 0:00:31]} 11. Bb2 {[%emt 0:00:17]} f6 {[%emt 0:00:43]} 12. O-O-O {[%emt 0:01:42]} Be6 {[%emt 0:07:22]} 13. Rde1 {[%emt 0:07:18]} Kf7 {[%emt 0:09:07]} 14. d3 {[%emt 0:05:30]} Bd5 {[%emt 0:09:18]} 15. Rhf1 {[%emt 0:04:42]} Nd4 {[%emt 0:00:26]} 16. Nd2 {[%emt 0:01:53]} Bc7 {[%emt 0:03:00]} 17. Bh5+ {[%emt 0:05:42]} g6 {[%emt 0:00:32]} 18. Bd1 {[%emt 0:00:19]} Rad8 {[%emt 0:00:16]} 19. f3 {[%emt 0:14:13]} h5 {[%emt 0:04:05]} 20. Rf2 {[%emt 0:04:11]} h4 {[%emt 0:10:52]} 21. g4 {[%emt 0:00:12]} g5 {[%emt 0:01:04]} 22. Nf1 {[%emt 0:08:41]} Ba5 {[%emt 0:06:39]} 23. c3 {[%emt 0:05:43]} Ne6 {[%emt 0:00:20]} 24. Kc2 {[%emt 0:03:27]} Nf4 {[%emt 0:07:04]} 25. Re3 {[%emt 0:01:31]} Bc6 {[%emt 0:05:39]} 26. c4 {[%emt 0:02:14]} Rd7 {[%emt 0:01:31]} 27. Bc3 {[%emt 0:00:36]} Bxc3 {[%emt 0:01:16]} 28. Kxc3 {[%emt 0:00:01]} Rhd8 {[%emt 0:00:08]} 29. Be2 {[%emt 0:02:56]} h3 {[%emt 0:00:14]} 30. Ng3 {[%emt 0:04:33]} Ng2 {[%emt 0:00:47]} 31. Nf5 {[%emt 0:00:06]} Nxe3 {[%emt 0:00:19]} 32. Nxe3 {[%emt 0:00:05]} b5 {[%emt 0:00:05]} 33. Bf1 {[%emt 0:01:18]} b4+ {[%emt 0:01:22]} 34. Kc2 {[%emt 0:01:00]} a5 {[%emt 0:00:35]} 35. Nd1 {[%emt 0:00:59]} a4 {[%emt 0:00:14]} 36. Nb2 {[%emt 0:00:21]} axb3+ {[%emt 0:00:36]} 37. axb3 {[%emt 0:00:03]} Ra7 {[%emt 0:01:25]} 38. Bxh3 {[%emt 0:00:39]} Ra1 {[%emt 0:00:33]} 39. Bf1 {[%emt 0:00:29]} Rda8 {[%emt 0:00:39]} 40. Be2 {[%emt 0:02:51]} R8a2 {[%emt 0:00:08]} 41. Bf1 {[%emt 0:00:35]} Re1 {[%emt 0:00:30]} 42. Be2 {[%emt 0:00:30]} Rea1 {[%emt 0:00:56]} 43. Bf1 {[%emt 0:00:30]} Re1 {[%emt 0:00:04]} 44. Be2 {[%emt 0:00:30]} Ke6 {[%emt 0:00:30]} 45. h3 {[%emt 0:00:55]} Rh1 {[%emt 0:02:47]} 46. Bf1 {[%emt 0:00:20]} Ra1 {[%emt 0:00:22]} 47. Nd1 {[%emt 0:00:38]} Bxf3 {[%emt 0:00:35]} 48. Rxf3 {[%emt 0:00:24]} Rh2+ {[%emt 0:00:28]} 49. Rf2 {[%emt 0:00:41]} Ra2+ {[%emt 0:01:12]} 0-1

[Event "UZB-ch Women 2021"]
[Site "Tashkent"]
[Date "2021.04.25"]
[Round "9.4"]
[White "Abdusattorova, Bakhora"]
[Black "Khegay, Yuliya"]
[Result "1-0"]
[ECO "D04"]
[WhiteElo "2078"]
[BlackElo "1913"]
[Annotator "ChessBase"]
[PlyCount "93"]
[EventDate "2021.04.17"]
[EventType "tourn"]
[EventCountry "UZB"]
[SourceTitle "playchess.com"]
[Source "ChessBase"]
[SourceQuality "1"]
[TimeControl "5400+30"]

1. d4 {[%emt 0:01:04]} d5 {[%emt 0:00:00]} 2. Nf3 {[%emt 0:01:18]} Nf6 {[%emt 0:00:00]} 3. e3 {[%emt 0:00:10]} c5 {[%emt 0:00:55]} 4. Bd3 {[%emt 0:02:52]} Nc6 {[%emt 0:03:09]} 5. O-O {[%emt 0:02:00]} Bg4 {[%emt 0:01:44]} 6. c3 {[%emt 0:00:57]} e6 {[%emt 0:00:39]} 7. Nbd2 {[%emt 0:03:26]} Be7 {[%emt 0:11:55]} 8. b3 {[%emt 0:09:45]} O-O {[%emt 1:15:38]} 9. Bb2 {[%emt 0:00:08]} Rc8 {[%emt 0:00:00]} 10. Rc1 {[%emt 0:02:00]} cxd4 {[%emt 0:00:00]} 11. exd4 {[%emt 0:00:14]} Bd6 {[%emt 0:00:00]} 12. Re1 {[%emt 0:01:15]} Bf4 {[%emt 0:00:00]} 13. Ra1 {[%emt 0:14:37]} Qc7 {[%emt 0:00:00]} 14. Nf1 {[%emt 0:01:05]} e5 {[%emt 0:00:00]} 15. dxe5 {[%emt 0:11:29]} Nxe5 {[%emt 0:00:00]} 16. Be2 {[%emt 0:00:15]} Rfe8 {[%emt 0:00:00]} 17. Nd4 {[%emt 0:03:29]} Bxe2 {[%emt 0:00:00]} 18. Nxe2 {[%emt 0:00:10]} Bh6 {[%emt 0:00:00]} 19. Neg3 {[%emt 0:43:16]} Ng6 {[%emt 0:00:00]} 20. Qd4 {[%emt 0:00:00]} Bf4 {[%emt 0:00:00]} 21. Rxe8+ {[%emt 0:00:00]} Rxe8 {[%emt 0:00:00]} 22. Qxa7 {[%emt 0:00:00]} Bd6 {[%emt 0:00:00]} 23. Qa4 {[%emt 0:00:00]} Qc8 {[%emt 0:07:30]} 24. c4 {[%emt 0:00:00]} Be5 {[%emt 0:00:00]} 25. Bxe5 {[%emt 0:00:00]} Rxe5 {[%emt 0:00:00]} 26. cxd5 {[%emt 0:00:00]} Nxd5 {[%emt 0:00:00]} 27. Qd4 {[%emt 0:00:00]} Qc6 {[%emt 0:00:00]} 28. f3 {[%emt 0:00:00]} h6 {[%emt 0:00:00]} 29. Rd1 {[%emt 0:00:00]} Ndf4 {[%emt 0:00:00]} 30. Qf2 {[%emt 0:00:00]} Nh4 {[%emt 0:01:42]} 31. Ne4 {[%emt 0:03:33]} Nhxg2 {[%emt 0:00:23]} 32. Kh1 {[%emt 0:00:36]} f5 {[%emt 0:01:18]} 33. Qb2 {[%emt 0:00:52]} Rd5 {[%emt 0:00:36]} 34. Rc1 {[%emt 0:00:34]} Qd7 {[%emt 0:00:37]} 35. Nc5 {[%emt 0:00:36]} Qb5 {[%emt 0:00:42]} 36. Ne6 {[%emt 0:01:35]} Nxe6 {[%emt 0:00:20]} 37. Qxg2 {[%emt 0:00:02]} Nf4 {[%emt 0:00:43]} 38. Qc2 {[%emt 0:01:02]} Nd3 {[%emt 0:00:32]} 39. Rb1 {[%emt 0:00:20]} Rc5 {[%emt 0:00:35]} 40. Qd2 {[%emt 0:00:20]} Ne5 {[%emt 0:00:17]} 41. Qe3 {[%emt 0:00:26]} Qc6 {[%emt 0:00:09]} 42. Nd2 {[%emt 0:00:47]} Qd5 {[%emt 0:00:28]} 43. Rg1 {[%emt 0:00:32]} Rc2 {[%emt 0:00:31]} 44. Rg2 {[%emt 0:00:42]} Ng4 {[%emt 0:00:59]} 45. Qe1 {[%emt 0:00:26]} Ne3 {[%emt 0:00:24]} 46. Qxe3 {[%emt 0:00:11]} Rc1+ {[%emt 0:00:06]} 47. Rg1 {[%emt 0:00:05]} 1-0

[Event "UZB-ch Women 2021"]
[Site "Tashkent"]
[Date "2021.04.26"]
[Round "10.2"]
[White "Malikova, Marjona"]
[Black "Shokirjonova, Barchinoy"]
[Result "1/2-1/2"]
[ECO "D85"]
[WhiteElo "1651"]
[BlackElo "1594"]
[Annotator "NA RC"]
[PlyCount "106"]
[EventDate "2021.04.17"]
[EventType "tourn"]
[EventCountry "UZB"]
[SourceTitle "playchess.com"]
[Source "ChessBase"]
[SourceQuality "1"]
[TimeControl "5400+30"]

1. d4 {[%emt 0:00:00]} Nf6 {[%emt 0:00:00]} 2. c4 {[%emt 0:00:05]} g6 {[%emt 0:00:00]} 3. Nc3 {[%emt 0:00:04]} d5 {[%emt 0:00:00]} 4. cxd5 {[%emt 0:00:04]} Nxd5 {[%emt 0:00:00]} 5. Bd2 {[%emt 0:00:13]} Bg7 {[%emt 0:00:39]} 6. e4 {[%emt 0:01:24]} Nxc3 {[%emt 0:01:29]} 7. Bxc3 {[%emt 0:00:09]} c5 {[%emt 0:03:25]} 8. d5 {[%emt 0:02:25]} Bxc3+ {[%emt 0:01:44]} 9. bxc3 {[%emt 0:00:04]} Nd7 {[%emt 0:04:37]} 10. Bd3 {[%emt 0:05:09]} Qa5 {[%emt 0:05:22]} 11. Ne2 {[%emt 0:01:17]} b5 {[%emt 0:05:25]} 12. O-O {[%emt 0:01:10]} Ne5 {[%emt 0:04:25]} 13. f4 {[%emt 0:02:58]} Nxd3 {[%emt 0:08:33]} 14. Qxd3 {[%emt 0:00:08]} Bb7 {[%emt 0:05:11]} 15. Rab1 {[%emt 0:10:02]} a6 {[%emt 0:05:41]} 16. c4 {[%emt 0:05:13]} b4 {[%emt 0:06:22]} 17. a3 {[%emt 0:00:18]} Rc8 {[%emt 0:03:32]} 18. axb4 {[%emt 0:06:07]} cxb4 {[%emt 0:00:14]} 19. Qd4 {[%emt 0:00:07]} O-O {[%emt 0:02:25]} 20. Rb3 {[%emt 0:07:01]} Qa4 {[%emt 0:09:55]} 21. Rfb1 {[%emt 0:03:37]} a5 {[%emt 0:00:42]} 22. Nc1 {[%emt 0:01:56]} Ba6 {[%emt 0:03:17]} 23. c5 {[%emt 0:01:50]} Qb5 {[%emt 0:00:06]} 24. Nd3 {[%emt 0:04:02]} Qc4 {[%emt 0:05:25]} 25. Qe3 {[%emt 0:02:28]} f6 {[%emt 0:02:27]} 26. c6 {[%emt 0:19:22]} a4 {[%emt 0:02:02]} 27. Rxb4 {[%emt 0:01:11]} Qxd3 {[%emt 0:00:05]} 28. Qxd3 {[%emt 0:00:15]} Bxd3 {[%emt 0:00:04]} 29. Rc1 {[%emt 0:00:28]} f5 {[%emt 0:06:48]} 30. exf5 {[%emt 0:02:44]} gxf5 {[%emt 0:04:07]} 31. Rxa4 {[%emt 0:01:45]} Rfd8 {[%emt 0:00:20]} 32. Rc5 {[%emt 0:00:57]} Be4 {[%emt 0:00:29]} 33. Raa5 {[%emt 0:00:22]} Rd6 {[%emt 0:02:02]} 34. Rab5 {[%emt 0:01:31]} Kf7 {[%emt 0:01:48]} 35. Kf2 {[%emt 0:01:21]} Ke8 {[%emt 0:00:20]} 36. h3 {[%emt 0:00:41]} e6 {[%emt 0:00:40]} 37. dxe6 {[%emt 0:02:06]} Rdxc6 {[%emt 0:01:37]} 38. Rxc6 {[%emt 0:00:56]} Rxc6 {[%emt 0:00:01]} 39. g4 {[%emt 0:01:36]} Bd3 {[%emt 0:05:35]} 40. Re5 {[%emt 0:01:21]} fxg4 {[%emt 0:01:30]} 41. hxg4 {[%emt 0:00:07]} Ke7 {[%emt 0:00:50]} 42. f5 {[%emt 0:00:32]} Bc4 {[%emt 0:00:22]} 43. Ke3 {[%emt 0:00:49]} Bxe6 {[%emt 0:00:41]} 44. Kf4 {[%emt 0:01:30]} Kf7 {[%emt 0:00:25]} 45. fxe6+ {[%emt 0:00:10]} Rxe6 {[%emt 0:00:01]} 46. Ra5 {[%emt 0:05:50]} Kg6 {[%emt 0:00:22]} 47. Rg5+ {[%emt 0:00:37]} Kf6 {[%emt 0:00:14]} 48. Rf5+ {[%emt 0:00:42]} Kg6 {[%emt 0:00:01]} 49. Rg5+ {[%emt 0:01:20]} Kf6 {[%emt 0:00:07]} 50. Ra5 {[%emt 0:00:05]} Kg6 {[%emt 0:00:03]} 51. Kg3 {[%emt 0:00:29]} Re1 {[%emt 0:00:34]} 52. Kf2 {[%emt 0:00:53]} Re4 {[%emt 0:00:27]} 53. Kf3 {[%emt 0:00:08]} Re1 {[%emt 0:03:59]} 1/2-1/2

[Event "UZB-ch Women 2021"]
[Site "Tashkent"]
[Date "2021.04.26"]
[Round "10.4"]
[White "Omonova, Umida"]
[Black "Semenova, Irina"]
[Result "1/2-1/2"]
[ECO "B18"]
[WhiteElo "2008"]
[BlackElo "2188"]
[Annotator "NA"]
[PlyCount "47"]
[EventDate "2021.04.17"]
[EventType "tourn"]
[EventCountry "UZB"]
[SourceTitle "playchess.com"]
[Source "ChessBase"]
[SourceQuality "1"]
[TimeControl "5400+30"]

1. e4 {[%emt 0:01:26]} c6 {[%emt 0:00:00]} 2. d4 {[%emt 0:00:06]} d5 {[%emt 0:00:00]} 3. Nd2 {[%emt 0:00:05]} dxe4 {[%emt 0:00:00]} 4. Nxe4 {[%emt 0:00:05]} Bf5 {[%emt 0:00:00]} 5. Ng3 {[%emt 0:00:06]} Bg6 {[%emt 0:00:00]} 6. Nf3 {[%emt 0:00:07]} Nd7 {[%emt 0:00:01]} 7. Bd3 {[%emt 0:00:11]} e6 {[%emt 0:00:50]} 8. O-O {[%emt 0:00:18]} Ngf6 {[%emt 0:00:05]} 9. Re1 {[%emt 0:00:09]} Be7 {[%emt 0:00:06]} 10. c4 {[%emt 0:00:18]} O-O 11. Bxg6 hxg6 {[%emt 0:00:23]} 12. b3 {[%emt 0:00:48]} a5 {[%emt 0:00:30]} 13. a4 {[%emt 0:02:49]} c5 {[%emt 0:04:16]} 14. Bb2 {[%emt 0:01:55]} cxd4 {[%emt 0:07:03]} 15. Nxd4 {[%emt 0:00:03]} Nc5 {[%emt 0:00:18]} 16. Qf3 {[%emt 0:03:21]} Nh7 {[%emt 0:15:05]} 17. Rad1 {[%emt 0:03:11]} Qb6 {[%emt 0:00:51]} 18. Nb5 {[%emt 0:05:57]} Rfd8 {[%emt 0:03:23]} 19. Bd4 {[%emt 0:06:36]} Qc6 {[%emt 0:11:48]} 20. Qe3 {[%emt 0:10:29]} Nf6 {[%emt 0:02:29]} 21. h3 {[%emt 0:01:52]} Rd7 {[%emt 0:14:16]} 22. Rd2 {[%emt 0:08:58]} b6 {[%emt 0:05:52]} 23. Red1 {[%emt 0:06:13]} Rad8 {[%emt 0:00:29]} 24. Bxc5 {[%emt 0:05:38]} 1/2-1/2

[Event "UZB-ch Women 2021"]
[Site "Tashkent"]
[Date "2021.04.27"]
[Round "11.3"]
[White "Salimova, Asal"]
[Black "Malikova, Marjona"]
[Result "1-0"]
[ECO "D02"]
[WhiteElo "1815"]
[BlackElo "1651"]
[Annotator "NA"]
[PlyCount "81"]
[EventDate "2021.04.17"]
[EventType "tourn"]
[EventCountry "UZB"]
[SourceTitle "playchess.com"]
[Source "ChessBase"]
[SourceQuality "1"]
[TimeControl "5400+30"]

1. d4 {[%emt 0:00:00]} Nf6 {[%emt 0:00:00]} 2. Nf3 {[%emt 0:00:02]} d5 {[%emt 0:00:00]} 3. Bf4 {[%emt 0:00:09]} e6 {[%emt 0:00:22]} 4. e3 {[%emt 0:00:43]} Bd6 {[%emt 0:00:17]} 5. Bg3 {[%emt 0:00:06]} Ne4 {[%emt 0:00:19]} 6. Bd3 {[%emt 0:00:29]} f5 {[%emt 0:01:56]} 7. Ne5 {[%emt 0:03:54]} Nxg3 {[%emt 0:02:43]} 8. hxg3 {[%emt 0:00:05]} Bxe5 {[%emt 0:00:09]} 9. dxe5 {[%emt 0:00:15]} Qg5 {[%emt 0:00:36]} 10. Nd2 {[%emt 0:02:38]} c5 {[%emt 0:04:21]} 11. Rh5 {[%emt 0:07:24]} Qe7 {[%emt 0:06:15]} 12. g4 {[%emt 0:03:51]} g6 {[%emt 0:02:46]} 13. Rh2 {[%emt 0:00:14]} Nc6 {[%emt 0:03:04]} 14. f4 {[%emt 0:01:16]} Bd7 {[%emt 0:02:30]} 15. g5 {[%emt 0:10:00]} c4 {[%emt 0:02:07]} 16. Be2 {[%emt 0:03:06]} Qc5 {[%emt 0:01:36]} 17. Rh3 {[%emt 0:01:32]} b5 {[%emt 0:03:17]} 18. c3 {[%emt 0:03:25]} b4 {[%emt 0:02:07]} 19. g4 {[%emt 0:00:35]} bxc3 {[%emt 0:03:26]} 20. bxc3 {[%emt 0:00:02]} Rb8 {[%emt 0:02:52]} 21. Rb1 {[%emt 0:00:40]} O-O {[%emt 0:02:46]} 22. gxf5 {[%emt 0:08:23]} exf5 {[%emt 0:03:23]} 23. Kf2 {[%emt 0:00:26]} Be6 {[%emt 0:03:33]} 24. Rh6 {[%emt 0:18:38]} Rxb1 {[%emt 0:08:21]} 25. Qxb1 {[%emt 0:00:07]} Nxe5 {[%emt 0:03:53]} 26. fxe5 {[%emt 0:14:25]} f4 {[%emt 0:00:06]} 27. Rxg6+ {[%emt 0:00:42]} hxg6 {[%emt 0:04:44]} 28. Qxg6+ {[%emt 0:00:04]} Kh8 {[%emt 0:00:04]} 29. Qh6+ {[%emt 0:00:04]} Kg8 {[%emt 0:00:08]} 30. Qxe6+ {[%emt 0:00:04]} Kh8 {[%emt 0:01:10]} 31. Qh6+ {[%emt 0:02:15]} Kg8 {[%emt 0:00:05]} 32. g6 {[%emt 0:01:02]} fxe3+ {[%emt 0:00:55]} 33. Kg3 {[%emt 0:00:20]} Qe7 {[%emt 0:00:47]} 34. Nxc4 {[%emt 0:00:49]} Rf2 {[%emt 0:02:50]} 35. Bf3 {[%emt 0:05:16]} Qg7 {[%emt 0:03:51]} 36. Bxd5+ {[%emt 0:00:08]} Kf8 {[%emt 0:00:08]} 37. Qxg7+ {[%emt 0:00:07]} Kxg7 {[%emt 0:00:05]} 38. Nxe3 {[%emt 0:00:04]} Rf8 {[%emt 0:01:22]} 39. Bf7 {[%emt 0:00:07]} Rc8 {[%emt 0:00:23]} 40. Nf5+ {[%emt 0:00:11]} Kf8 {[%emt 0:00:11]} 41. g7+ {[%emt 0:00:12]} 1-0